[Event "2026 European Womens Championship"]
[Site "Batumi, GE"]
[Date "2026.06.05"]
[Round "11"]
[White "Jimenez Fernandez, Rebeca"]
[Black "Nahapetyan, Ani"]
[Result "1-0"]
[Board "56"]
[TimeControl "5400+30"]
[WhiteFideId "32070934"]
[BlackFideId "13317776"]
[WhiteElo "2166"]
[BlackElo "1827"]
[WhiteTitle "WFM"]
[WhiteClock "0:05:48"]
[BlackClock "0:13:25"]
[Variant "Standard"]

1. e4 {[%clk 1:30:57]}  e6 {[%clk 1:30:51]} 2. d4 {[%clk 1:31:23]}  d5 {[%clk 1:31:17]} 3. e5 {[%clk 1:31:50]}  c5 {[%clk 1:31:44]}
4. c3 {[%clk 1:32:15]}  Nc6 {[%clk 1:32:10]} 5. Nf3 {[%clk 1:32:42]}  Bd7 {[%clk 1:32:34]} 6. Be2 {[%clk 1:33:02]}  Nge7 {[%clk 1:32:54]}
7. O-O {[%clk 1:33:25]}  Ng6 {[%clk 1:33:19]} 8. g3 {[%clk 1:33:51]}  f6 {[%clk 1:33:42]} 9. exf6 {[%clk 1:34:18]}  Qxf6 {[%clk 1:34:07]}
10. Bg5 {[%clk 1:34:42]}  Qf7 {[%clk 1:34:23]} 11. Nbd2 {[%clk 1:35:05]}  cxd4 {[%clk 1:29:26]} 12. Nxd4 {[%clk 1:35:05]}  Nxd4 {[%clk 1:28:47]}
13. cxd4 {[%clk 1:35:31]}  Bd6 {[%clk 1:27:30]} 14. Be3 {[%clk 1:35:44]}  O-O {[%clk 1:24:48]} 15. f4 {[%clk 1:36:04]}  Rac8 {[%clk 1:22:33]}
16. Nf3 {[%clk 1:35:18]}  Qe8 {[%clk 1:20:41]} 17. a4 {[%clk 1:30:56]}  Qd8 {[%clk 1:11:57]} 18. Bd3 {[%clk 1:28:28]}  Ne7 {[%clk 1:00:55]}
19. Re1 {[%clk 1:20:38]}  Bb4 {[%clk 0:52:54]} 20. Re2 {[%clk 1:07:07]}  a6 {[%clk 0:46:14]} 21. Bf2 {[%clk 1:06:10]}  g6 {[%clk 0:43:38]}
22. Ng5 {[%clk 0:59:21]}  Rf6 {[%clk 0:42:46]} 23. Qf1 {[%clk 0:56:55]}  Nf5 {[%clk 0:34:12]} 24. g4 {[%clk 0:49:16]}  Nd6 {[%clk 0:33:21]}
25. Qh3 {[%clk 0:46:01]}  Qe7 {[%clk 0:32:54]} 26. Bh4 {[%clk 0:35:18]}  Qg7 {[%clk 0:30:49]} 27. Bg3 {[%clk 0:17:32]}  h6 {[%clk 0:24:57]}
28. Nf3 {[%clk 0:17:17]}  g5 {[%clk 0:24:07]} 29. Ne5 {[%clk 0:14:31]}  gxf4 {[%clk 0:23:37]} 30. Bh4 {[%clk 0:14:15]}  Rff8 {[%clk 0:22:59]}
31. Kh1 {[%clk 0:09:04]}  Be8 {[%clk 0:20:46]} 32. g5 {[%clk 0:09:02]}  Nf5 {[%clk 0:19:29]} 33. gxh6 {[%clk 0:07:42]}  Qxh6 {[%clk 0:19:16]}
34. Rg1+ {[%clk 0:06:58]}  Kh8 {[%clk 0:19:26]} 35. Bxf5 {[%clk 0:05:48]}  exf5 {[%clk 0:15:56]} 36. Reg2 {[%clk 0:05:32]}  Be7 {[%clk 0:13:31]}
37. Bf6+ {[%clk 0:04:59]}  Rxf6 {[%clk 0:12:58]} 38. Rg8+ {[%clk 0:05:24]}  Kh7 {[%clk 0:13:25]} 39. R1g7# {[%clk 0:05:48]} 1-0

[Event "2026 European Womens Championship"]
[Site "Batumi, GE"]
[Date "2026.06.05"]
[Round "11"]
[White "Ptacnikova, Lenka"]
[Black "Nenova, Andzhelika"]
[Result "0-1"]
[Board "57"]
[TimeControl "5400+30"]
[WhiteFideId "305650"]
[BlackFideId "2939355"]
[WhiteElo "2126"]
[BlackElo "2072"]
[WhiteTitle "WGM"]
[WhiteClock "1:02:36"]
[BlackClock "0:55:40"]
[Variant "Standard"]

1. c4 {[%clk 1:30:58]}  e6 {[%clk 1:30:48]} 2. Nf3 {[%clk 1:31:00]}  d5 {[%clk 1:30:46]} 3. b3 {[%clk 1:30:20]}  Nf6 {[%clk 1:30:55]}
4. Bb2 {[%clk 1:30:33]}  c5 {[%clk 1:30:47]} 5. cxd5 {[%clk 1:30:53]}  exd5 {[%clk 1:31:09]} 6. d4 {[%clk 1:30:55]}  Nc6 {[%clk 1:29:42]}
7. g3 {[%clk 1:30:04]}  cxd4 {[%clk 1:28:02]} 8. Nxd4 {[%clk 1:28:01]}  Bb4+ {[%clk 1:28:24]} 9. Nc3 {[%clk 1:26:20]}  Qa5 {[%clk 1:24:07]}
10. Rc1 {[%clk 1:23:19]}  Ne4 {[%clk 1:22:50]} 11. a3 {[%clk 1:14:13]}  Bxc3+ {[%clk 1:06:09]} 12. Bxc3 {[%clk 1:14:36]}  Nxc3 {[%clk 1:06:33]}
13. Nxc6 {[%clk 1:06:28]}  bxc6 {[%clk 1:06:56]} 14. Qd2 {[%clk 1:06:05]}  d4 {[%clk 1:05:10]} 15. e3 {[%clk 1:05:58]}  O-O {[%clk 1:02:26]}
16. Bg2 {[%clk 1:06:16]}  Ba6 {[%clk 1:02:10]} 17. Bxc6 {[%clk 1:03:20]}  Rac8 {[%clk 1:00:39]} 18. b4 {[%clk 1:03:00]}  Qxa3 {[%clk 1:00:13]}
19. b5 {[%clk 1:03:20]}  Rxc6 {[%clk 0:54:47]} 20. bxc6 {[%clk 1:03:32]}  Ne4 {[%clk 0:54:54]} 21. exd4 {[%clk 1:02:09]}  Nxd2 {[%clk 0:55:16]}
22. Kxd2 {[%clk 1:02:36]}  Qd3+ {[%clk 0:55:40]} 0-1

[Event "2026 European Womens Championship"]
[Site "Batumi, GE"]
[Date "2026.06.05"]
[Round "11"]
[White "Nadanyan, Kiti"]
[Black "Arakhamia-Grant, Ketevan"]
[Result "0-1"]
[Board "58"]
[TimeControl "5400+30"]
[WhiteFideId "13316710"]
[BlackFideId "13600168"]
[WhiteElo "1801"]
[BlackElo "2306"]
[BlackTitle "GM"]
[WhiteClock "0:30:08"]
[BlackClock "0:28:35"]
[Variant "Standard"]

1. e4 {[%clk 1:30:52]}  c5 {[%clk 1:30:52]} 2. Nc3 {[%clk 1:31:04]}  e6 {[%clk 1:31:15]} 3. g3 {[%clk 1:31:12]}  Nc6 {[%clk 1:31:36]}
4. Bg2 {[%clk 1:31:33]}  Nf6 {[%clk 1:31:55]} 5. Nge2 {[%clk 1:30:33]}  d5 {[%clk 1:31:58]} 6. exd5 {[%clk 1:29:57]}  exd5 {[%clk 1:32:20]}
7. d4 {[%clk 1:29:16]}  Bg4 {[%clk 1:22:14]} 8. h3 {[%clk 1:21:27]}  Bh5 {[%clk 1:21:57]} 9. g4 {[%clk 1:19:01]}  Bg6 {[%clk 1:22:16]}
10. Bg5 {[%clk 1:02:09]}  Be7 {[%clk 1:20:11]} 11. dxc5 {[%clk 0:55:56]}  O-O {[%clk 1:12:22]} 12. O-O {[%clk 0:53:09]}  d4 {[%clk 1:04:45]}
13. Bxf6 {[%clk 0:41:39]}  gxf6 {[%clk 0:42:11]} 14. Ne4 {[%clk 0:31:39]}  f5 {[%clk 0:42:19]} 15. gxf5 {[%clk 0:16:27]}  Bxf5 {[%clk 0:42:42]}
16. N4g3 {[%clk 0:09:53]}  Bg6 {[%clk 0:38:59]} 17. Bxc6 {[%clk 0:09:11]}  bxc6 {[%clk 0:39:19]} 18. Qxd4 {[%clk 0:09:14]}  Bf6 {[%clk 0:35:04]}
19. Qxd8 {[%clk 0:06:17]}  Rfxd8 {[%clk 0:35:25]} 20. c3 {[%clk 0:04:38]}  Rd2 {[%clk 0:35:25]} 21. f4 {[%clk 0:03:59]}  Bd3 {[%clk 0:29:26]}
22. Rfd1 {[%clk 0:03:26]}  Rxe2 {[%clk 0:29:43]} 23. Nxe2 {[%clk 0:02:46]}  Bxe2 {[%clk 0:30:03]} 24. Rd6 {[%clk 0:03:13]}  Be7 {[%clk 0:16:16]}
25. Rxc6 {[%clk 0:03:30]}  Bb5 {[%clk 0:16:20]} 26. Rc7 {[%clk 0:03:47]}  Bd8 {[%clk 0:16:24]} 27. Rb7 {[%clk 0:04:04]}  Bc6 {[%clk 0:16:46]}
28. Rb3 {[%clk 0:02:07]}  Be7 {[%clk 0:17:01]} 29. c4 {[%clk 0:00:35]}  Bxc5+ {[%clk 0:17:20]} 30. Kh2 {[%clk 0:00:32]}  Rd8 {[%clk 0:16:56]}
31. Kg3 {[%clk 0:00:32]}  f5 {[%clk 0:15:23]} 32. Rf1 {[%clk 0:00:32]}  Kg7 {[%clk 0:11:16]} 33. a3 {[%clk 0:00:32]}  Rd2 {[%clk 0:03:06]}
34. h4 {[%clk 0:00:41]}  Kf6 {[%clk 0:01:09]} 35. Rb8 {[%clk 0:00:32]}  Rd3+ {[%clk 0:01:09]} 36. Kh2 {[%clk 0:00:53]}  Rd2+ {[%clk 0:01:33]}
37. Kg3 {[%clk 0:01:14]}  Rg2+ {[%clk 0:01:00]} 38. Kh3 {[%clk 0:01:38]}  Rg4 {[%clk 0:00:51]} 39. Rd1 {[%clk 0:00:32]}  Bg2+ {[%clk 0:00:58]}
40. Kh2 {[%clk 0:00:48]}  Be4 {[%clk 0:00:51]} 41. b4 {[%clk 0:00:42]}  Bf2 {[%clk 0:28:33]} 42. Rd6+ {[%clk 0:29:58]}  Ke7 {[%clk 0:28:18]}
43. Rh6 {[%clk 0:30:08]}  Bg1+ {[%clk 0:28:35]} 0-1

[Event "2026 European Womens Championship"]
[Site "Batumi, GE"]
[Date "2026.06.05"]
[Round "11"]
[White "Brunello, Marina"]
[Black "Demirtas, Hafize"]
[Result "1-0"]
[Board "59"]
[TimeControl "5400+30"]
[WhiteFideId "822590"]
[BlackFideId "6382070"]
[WhiteElo "2346"]
[BlackElo "1928"]
[WhiteTitle "IM"]
[WhiteClock "0:09:42"]
[BlackClock "0:01:27"]
[Variant "Standard"]

1. e4 {[%clk 1:30:57]}  c6 {[%clk 1:30:40]} 2. d4 {[%clk 1:31:22]}  d5 {[%clk 1:31:00]} 3. e5 {[%clk 1:31:49]}  Bf5 {[%clk 1:31:15]}
4. Nf3 {[%clk 1:32:15]}  e6 {[%clk 1:31:31]} 5. Be2 {[%clk 1:32:42]}  Nd7 {[%clk 1:31:51]} 6. Nbd2 {[%clk 1:32:42]}  a5 {[%clk 1:32:08]}
7. Nf1 {[%clk 1:32:59]}  a4 {[%clk 1:32:20]} 8. Ng3 {[%clk 1:32:27]}  Bg6 {[%clk 1:32:28]} 9. a3 {[%clk 1:31:18]}  h6 {[%clk 1:32:29]}
10. O-O {[%clk 1:28:16]}  c5 {[%clk 1:32:09]} 11. Be3 {[%clk 1:21:26]}  Ne7 {[%clk 1:19:54]} 12. c4 {[%clk 1:18:01]}  Qa5 {[%clk 1:17:18]}
13. Rc1 {[%clk 1:14:55]}  dxc4 {[%clk 1:16:40]} 14. Bxc4 {[%clk 1:14:27]}  b5 {[%clk 1:16:19]} 15. Bd3 {[%clk 1:02:16]}  Bxd3 {[%clk 1:15:30]}
16. Qxd3 {[%clk 1:02:41]}  c4 {[%clk 1:15:18]} 17. Qe4 {[%clk 1:02:47]}  Nd5 {[%clk 1:15:11]} 18. Bd2 {[%clk 1:03:00]}  Qa7 {[%clk 1:11:46]}
19. h4 {[%clk 1:01:46]}  Be7 {[%clk 1:01:51]} 20. h5 {[%clk 0:53:24]}  O-O-O {[%clk 0:48:39]} 21. Nh2 {[%clk 0:50:18]}  Qb6 {[%clk 0:31:02]}
22. Ne2 {[%clk 0:37:10]}  Nb8 {[%clk 0:27:48]} 23. Ng4 {[%clk 0:29:19]}  Rhe8 {[%clk 0:19:38]} 24. Qf3 {[%clk 0:24:42]}  Rf8 {[%clk 0:18:52]}
25. Ne3 {[%clk 0:24:28]}  Nc7 {[%clk 0:15:21]} 26. Bc3 {[%clk 0:19:39]}  Nc6 {[%clk 0:13:39]} 27. Rcd1 {[%clk 0:19:56]}  Bg5 {[%clk 0:11:26]}
28. d5 {[%clk 0:17:25]}  Bxe3 {[%clk 0:11:39]} 29. dxc6 {[%clk 0:17:38]}  Bc5 {[%clk 0:05:23]} 30. Rxd8+ {[%clk 0:17:31]}  Rxd8 {[%clk 0:05:48]}
31. Qxf7 {[%clk 0:16:49]}  Qxc6 {[%clk 0:05:54]} 32. Qxg7 {[%clk 0:16:47]}  Qe4 {[%clk 0:06:04]} 33. Ng3 {[%clk 0:16:29]}  Qh4 {[%clk 0:06:22]}
34. Qg6 {[%clk 0:16:14]}  Rd3 {[%clk 0:01:30]} 35. Ne4 {[%clk 0:16:05]}  Bb6 {[%clk 0:01:39]} 36. Nd6+ {[%clk 0:14:28]}  Kd7 {[%clk 0:01:50]}
37. Qxh6 {[%clk 0:12:11]}  Rg3 {[%clk 0:01:40]} 38. Qh7+ {[%clk 0:12:15]}  Kd8 {[%clk 0:01:16]} 39. Ne4 {[%clk 0:12:21]}  Rg4 {[%clk 0:01:13]}
40. Nf6 {[%clk 0:09:58]}  Kc8 {[%clk 0:00:41]} 41. Nxg4 {[%clk 0:09:41]}  Qxg4 {[%clk 0:01:09]} 42. Qg6 {[%clk 0:09:21]}  Qh4 {[%clk 0:01:12]}
43. h6 {[%clk 0:09:13]}  Kb7 {[%clk 0:01:25]} 44. h7 {[%clk 0:09:33]}  Nd5 {[%clk 0:01:27]} 45. Qg7+ {[%clk 0:09:42]} 1-0

[Event "2026 European Womens Championship"]
[Site "Batumi, GE"]
[Date "2026.06.05"]
[Round "11"]
[White "Diasamidze, Lulu"]
[Black "Donghvani, Nia"]
[Result "1/2-1/2"]
[Board "60"]
[TimeControl "5400+30"]
[WhiteFideId "13623818"]
[BlackFideId "13614649"]
[WhiteElo "1924"]
[BlackElo "2117"]
[BlackTitle "WFM"]
[WhiteClock "0:21:16"]
[BlackClock "0:02:42"]
[Variant "Standard"]

1. e4 {[%clk 1:30:55]}  c6 {[%clk 1:30:45]} 2. d4 {[%clk 1:31:21]}  d5 {[%clk 1:31:13]} 3. Nc3 {[%clk 1:31:46]}  dxe4 {[%clk 1:31:39]}
4. Nxe4 {[%clk 1:32:12]}  Nf6 {[%clk 1:32:07]} 5. Nxf6+ {[%clk 1:32:33]}  exf6 {[%clk 1:32:15]} 6. c3 {[%clk 1:32:18]}  Bd6 {[%clk 1:32:25]}
7. Bd3 {[%clk 1:32:40]}  O-O {[%clk 1:25:17]} 8. Qc2 {[%clk 1:33:05]}  g6 {[%clk 1:25:16]} 9. Be3 {[%clk 1:31:01]}  Be6 {[%clk 1:24:26]}
10. Ne2 {[%clk 1:28:23]}  Qc7 {[%clk 1:23:47]} 11. c4 {[%clk 1:22:58]}  c5 {[%clk 1:13:15]} 12. d5 {[%clk 1:08:02]}  Bd7 {[%clk 1:13:19]}
13. h4 {[%clk 1:07:54]}  b5 {[%clk 1:09:11]} 14. O-O {[%clk 1:01:07]}  b4 {[%clk 0:59:11]} 15. Qd2 {[%clk 0:55:27]}  Re8 {[%clk 0:56:24]}
16. Rfe1 {[%clk 0:52:35]}  Bg4 {[%clk 0:48:29]} 17. f3 {[%clk 0:48:05]}  Bd7 {[%clk 0:48:37]} 18. Rad1 {[%clk 0:42:31]}  Na6 {[%clk 0:39:39]}
19. Kf2 {[%clk 0:38:23]}  Re7 {[%clk 0:38:56]} 20. g3 {[%clk 0:37:36]}  Rae8 {[%clk 0:32:50]} 21. Bf4 {[%clk 0:37:51]}  Be5 {[%clk 0:27:15]}
22. Bxe5 {[%clk 0:37:47]}  Qxe5 {[%clk 0:21:00]} 23. Bb1 {[%clk 0:37:36]}  Qd6 {[%clk 0:15:36]} 24. Qf4 {[%clk 0:36:32]}  Re5 {[%clk 0:15:40]}
25. Nc1 {[%clk 0:33:33]}  g5 {[%clk 0:15:07]} 26. hxg5 {[%clk 0:32:46]}  fxg5 {[%clk 0:15:35]} 27. Qd2 {[%clk 0:32:06]}  Qf6 {[%clk 0:10:58]}
28. Rxe5 {[%clk 0:29:47]}  Rxe5 {[%clk 0:11:25]} 29. Re1 {[%clk 0:26:00]}  g4 {[%clk 0:08:46]} 30. f4 {[%clk 0:21:19]}  Rh5 {[%clk 0:09:15]}
31. Rg1 {[%clk 0:20:40]}  Rh2+ {[%clk 0:03:29]} 32. Rg2 {[%clk 0:21:06]}  Rh1 {[%clk 0:02:50]} 33. Rg1 {[%clk 0:20:20]}  Rh2+ {[%clk 0:02:57]}
34. Rg2 {[%clk 0:20:46]}  Rh1 {[%clk 0:03:25]} 35. Rg1 {[%clk 0:20:59]}  Rh2+ {[%clk 0:03:33]} 36. Rg2 {[%clk 0:21:16]}  Rh1 {[%clk 0:02:42]} 1/2-1/2

[Event "2026 European Womens Championship"]
[Site "Batumi, GE"]
[Date "2026.06.05"]
[Round "11"]
[White "Kalyoncu, Beren"]
[Black "Shuqja, Klean"]
[Result "1-0"]
[Board "61"]
[TimeControl "5400+30"]
[WhiteFideId "51608383"]
[BlackFideId "4701585"]
[WhiteElo "1840"]
[BlackElo "2092"]
[WhiteTitle "WCM"]
[BlackTitle "WFM"]
[WhiteClock "0:19:14"]
[BlackClock "0:00:51"]
[Variant "Standard"]

1. e4 {[%clk 1:30:55]}  c5 {[%clk 1:28:36]} 2. c3 {[%clk 1:31:00]}  d5 {[%clk 1:28:55]} 3. exd5 {[%clk 1:31:18]}  Qxd5 {[%clk 1:29:17]}
4. d4 {[%clk 1:31:25]}  g6 {[%clk 1:29:36]} 5. Nf3 {[%clk 1:31:34]}  Bg7 {[%clk 1:29:57]} 6. Na3 {[%clk 1:31:34]}  cxd4 {[%clk 1:30:17]}
7. Bc4 {[%clk 1:30:52]}  Qe4+ {[%clk 1:23:50]} 8. Be3 {[%clk 1:30:32]}  Nh6 {[%clk 1:11:49]} 9. Nb5 {[%clk 1:29:25]}  Na6 {[%clk 1:12:30]}
10. cxd4 {[%clk 1:24:04]}  O-O {[%clk 1:11:47]} 11. Nc3 {[%clk 1:19:49]}  Qc6 {[%clk 1:07:44]} 12. Qb3 {[%clk 1:15:14]}  Nf5 {[%clk 1:00:05]}
13. O-O {[%clk 1:12:19]}  Nd6 {[%clk 0:47:37]} 14. Be2 {[%clk 1:06:28]}  Bf5 {[%clk 0:44:28]} 15. Ne5 {[%clk 0:58:49]}  Qc7 {[%clk 0:41:12]}
16. Bxa6 {[%clk 0:56:38]}  Be6 {[%clk 0:33:45]} 17. d5 {[%clk 0:54:20]}  Bxe5 {[%clk 0:30:44]} 18. dxe6 {[%clk 0:53:53]}  bxa6 {[%clk 0:30:59]}
19. Nd5 {[%clk 0:51:57]}  Qd8 {[%clk 0:23:25]} 20. Bg5 {[%clk 0:45:04]}  f6 {[%clk 0:18:21]} 21. Bh6 {[%clk 0:33:44]}  Re8 {[%clk 0:18:27]}
22. Rfd1 {[%clk 0:30:34]}  Rb8 {[%clk 0:15:07]} 23. Qa4 {[%clk 0:29:11]}  Bxb2 {[%clk 0:12:23]} 24. Rab1 {[%clk 0:29:05]}  Qc8 {[%clk 0:11:05]}
25. Qd7 {[%clk 0:22:04]}  Nf5 {[%clk 0:01:00]} 26. Bf4 {[%clk 0:19:56]}  Rb7 {[%clk 0:00:58]} 27. Qxc8 {[%clk 0:19:53]}  Rxc8 {[%clk 0:01:23]}
28. g4 {[%clk 0:19:38]}  Nh4 {[%clk 0:00:32]} 29. Rxb2 {[%clk 0:18:59]}  Rxb2 {[%clk 0:00:51]} 30. Nxe7+ {[%clk 0:19:14]} 1-0

[Event "2026 European Womens Championship"]
[Site "Batumi, GE"]
[Date "2026.06.05"]
[Round "11"]
[White "Tashkinova, Sofiia"]
[Black "Chkhartishvili, Lika"]
[Result "1/2-1/2"]
[Board "62"]
[TimeControl "5400+30"]
[WhiteFideId "14188309"]
[BlackFideId "13635166"]
[WhiteElo "2085"]
[BlackElo "1822"]
[WhiteTitle "WFM"]
[WhiteClock "0:18:52"]
[BlackClock "0:17:40"]
[Variant "Standard"]

1. e4 {[%clk 1:30:57]}  c5 {[%clk 1:30:57]} 2. Nf3 {[%clk 1:31:19]}  Nc6 {[%clk 1:31:19]} 3. Bb5 {[%clk 1:31:14]}  g6 {[%clk 1:31:44]}
4. O-O {[%clk 1:31:05]}  Bg7 {[%clk 1:32:08]} 5. c3 {[%clk 1:29:46]}  Nf6 {[%clk 1:30:39]} 6. Re1 {[%clk 1:30:03]}  O-O {[%clk 1:30:56]}
7. d4 {[%clk 1:30:29]}  d5 {[%clk 1:30:28]} 8. e5 {[%clk 1:30:53]}  Ne4 {[%clk 1:30:51]} 9. Be3 {[%clk 1:30:22]}  cxd4 {[%clk 1:28:42]}
10. cxd4 {[%clk 1:30:35]}  Qb6 {[%clk 1:29:07]} 11. Bxc6 {[%clk 1:30:44]}  Qxc6 {[%clk 1:29:32]} 12. Nbd2 {[%clk 1:30:36]}  Bg4 {[%clk 1:24:32]}
13. Qb3 {[%clk 1:28:55]}  Nxd2 {[%clk 1:23:59]} 14. Nxd2 {[%clk 1:28:21]}  Rac8 {[%clk 1:23:04]} 15. Qa3 {[%clk 1:27:07]}  Rfe8 {[%clk 1:20:36]}
16. Nb3 {[%clk 1:25:18]}  b6 {[%clk 1:20:04]} 17. Rac1 {[%clk 1:21:18]}  Qd7 {[%clk 1:19:27]} 18. Qa6 {[%clk 1:21:17]}  h5 {[%clk 1:15:58]}
19. a4 {[%clk 1:14:29]}  Rxc1 {[%clk 1:13:37]} 20. Rxc1 {[%clk 1:12:28]}  Rc8 {[%clk 1:13:40]} 21. a5 {[%clk 1:08:06]}  Rxc1+ {[%clk 1:13:01]}
22. Nxc1 {[%clk 1:07:34]}  Qc7 {[%clk 1:08:08]} 23. Qb5 {[%clk 1:04:45]}  Qd7 {[%clk 1:04:08]} 24. Qb4 {[%clk 1:04:38]}  bxa5 {[%clk 1:02:49]}
25. Qxa5 {[%clk 1:04:56]}  f6 {[%clk 1:00:51]} 26. exf6 {[%clk 1:04:24]}  Bxf6 {[%clk 1:01:10]} 27. Nd3 {[%clk 1:04:15]}  e6 {[%clk 0:52:49]}
28. Nc5 {[%clk 0:54:11]}  Qe7 {[%clk 0:52:01]} 29. h3 {[%clk 0:50:35]}  Bf5 {[%clk 0:52:17]} 30. Qa2 {[%clk 0:49:15]}  Kg7 {[%clk 0:50:42]}
31. Qb3 {[%clk 0:47:23]}  g5 {[%clk 0:49:56]} 32. Qa2 {[%clk 0:35:33]}  Kg6 {[%clk 0:49:08]} 33. Qa4 {[%clk 0:32:36]}  e5 {[%clk 0:47:17]}
34. Qc6 {[%clk 0:32:28]}  Kg7 {[%clk 0:38:34]} 35. Qxd5 {[%clk 0:31:39]}  exd4 {[%clk 0:35:21]} 36. Bxd4 {[%clk 0:29:30]}  Bxd4 {[%clk 0:35:30]}
37. Qxd4+ {[%clk 0:29:51]}  Kg6 {[%clk 0:35:41]} 38. b4 {[%clk 0:25:31]}  h4 {[%clk 0:32:44]} 39. Nd3 {[%clk 0:21:04]}  Bxd3 {[%clk 0:25:31]}
40. Qxd3+ {[%clk 0:21:29]}  Kh6 {[%clk 0:25:46]} 41. Qd4 {[%clk 0:21:29]}  Qe1+ {[%clk 0:24:32]} 42. Kh2 {[%clk 0:21:53]}  Qe6 {[%clk 0:22:42]}
43. b5 {[%clk 0:19:56]}  Kg6 {[%clk 0:18:36]} 44. Qc5 {[%clk 0:18:35]}  Qf7 {[%clk 0:16:37]} 45. Kg1 {[%clk 0:16:30]}  Qa2 {[%clk 0:15:08]}
46. Qc6+ {[%clk 0:15:11]}  Kf5 {[%clk 0:15:20]} 47. Qf3+ {[%clk 0:14:54]}  Kg6 {[%clk 0:15:31]} 48. Qe4+ {[%clk 0:15:15]}  Kf6 {[%clk 0:15:53]}
49. Qd4+ {[%clk 0:15:18]}  Kg6 {[%clk 0:16:12]} 50. Kh2 {[%clk 0:15:43]}  Qe6 {[%clk 0:16:22]} 51. g3 {[%clk 0:15:40]}  hxg3+ {[%clk 0:16:32]}
52. Kxg3 {[%clk 0:14:59]}  Qb3+ {[%clk 0:16:39]} 53. f3 {[%clk 0:15:07]}  Qxb5 {[%clk 0:16:41]} 54. Qxa7 {[%clk 0:15:27]}  Qe5+ {[%clk 0:17:00]}
55. Kg2 {[%clk 0:15:52]}  Qe2+ {[%clk 0:17:09]} 56. Qf2 {[%clk 0:16:14]}  Qe6 {[%clk 0:17:12]} 57. Qc2+ {[%clk 0:16:25]}  Kf6 {[%clk 0:17:28]}
58. Qd3 {[%clk 0:15:42]}  Qb6 {[%clk 0:16:34]} 59. Qe4 {[%clk 0:15:35]}  Qb2+ {[%clk 0:16:33]} 60. Kg3 {[%clk 0:15:54]}  Qb8+ {[%clk 0:16:09]}
61. Kg2 {[%clk 0:14:54]}  Qb2+ {[%clk 0:16:33]} 62. Kf1 {[%clk 0:15:12]}  Qa1+ {[%clk 0:16:30]} 63. Kf2 {[%clk 0:15:18]}  Qb2+ {[%clk 0:15:50]}
64. Qe2 {[%clk 0:15:32]}  Qb6+ {[%clk 0:15:42]} 65. Kg2 {[%clk 0:15:53]}  Kg6 {[%clk 0:15:44]} 66. Qf2 {[%clk 0:15:57]}  Qd6 {[%clk 0:15:49]}
67. h4 {[%clk 0:15:59]}  gxh4 {[%clk 0:15:00]} 68. Qxh4 {[%clk 0:16:23]}  Qd2+ {[%clk 0:15:25]} 69. Kh3 {[%clk 0:16:43]}  Qd1 {[%clk 0:14:53]}
70. Qg3+ {[%clk 0:16:29]}  Kf5 {[%clk 0:14:40]} 71. Qg4+ {[%clk 0:16:44]}  Kf6 {[%clk 0:15:05]} 72. Qf4+ {[%clk 0:16:24]}  Kg6 {[%clk 0:15:20]}
73. Qe4+ {[%clk 0:16:45]}  Kf6 {[%clk 0:15:39]} 74. f4 {[%clk 0:16:41]}  Qf1+ {[%clk 0:15:48]} 75. Kg3 {[%clk 0:16:49]}  Qg1+ {[%clk 0:16:10]}
76. Kf3 {[%clk 0:17:09]}  Qh1+ {[%clk 0:16:30]} 77. Ke3 {[%clk 0:17:36]}  Qxe4+ {[%clk 0:16:51]} 78. Kxe4 {[%clk 0:18:01]}  Ke6 {[%clk 0:17:17]}
79. f5+ {[%clk 0:18:27]}  Kf6 {[%clk 0:17:40]} 80. Kf4 {[%clk 0:18:52]} 1/2-1/2

[Event "2026 European Womens Championship"]
[Site "Batumi, GE"]
[Date "2026.06.05"]
[Round "11"]
[White "Kalandadze, Mariam"]
[Black "Buyuk, Ecrin Efsa"]
[Result "1-0"]
[Board "63"]
[TimeControl "5400+30"]
[WhiteFideId "13621122"]
[BlackFideId "44505175"]
[WhiteElo "1892"]
[BlackElo "2076"]
[BlackTitle "WFM"]
[WhiteClock "0:22:32"]
[BlackClock "0:00:39"]
[Variant "Standard"]

1. d4 {[%clk 1:30:58]}  d5 {[%clk 1:30:56]} 2. c4 {[%clk 1:31:25]}  c6 {[%clk 1:31:22]} 3. cxd5 {[%clk 1:31:52]}  cxd5 {[%clk 1:31:48]}
4. Bf4 {[%clk 1:32:19]}  Nf6 {[%clk 1:32:09]} 5. Nc3 {[%clk 1:32:45]}  Nc6 {[%clk 1:32:33]} 6. e3 {[%clk 1:33:11]}  e6 {[%clk 1:32:16]}
7. Bd3 {[%clk 1:33:35]}  Bd6 {[%clk 1:32:07]} 8. Bxd6 {[%clk 1:33:59]}  Qxd6 {[%clk 1:32:34]} 9. f4 {[%clk 1:34:24]}  Bd7 {[%clk 1:27:59]}
10. Nf3 {[%clk 1:33:19]}  a6 {[%clk 1:07:09]} 11. O-O {[%clk 1:31:08]}  Ng4 {[%clk 0:54:33]} 12. Qe1 {[%clk 1:25:06]}  f5 {[%clk 0:52:10]}
13. h3 {[%clk 1:24:03]}  Nf6 {[%clk 0:52:09]} 14. Ne5 {[%clk 1:21:24]}  O-O {[%clk 0:49:09]} 15. Qh4 {[%clk 1:17:31]}  Ne7 {[%clk 0:33:45]}
16. g4 {[%clk 1:07:14]}  g6 {[%clk 0:31:23]} 17. Rf2 {[%clk 1:04:47]}  b5 {[%clk 0:27:48]} 18. a3 {[%clk 1:02:34]}  Ne4 {[%clk 0:20:13]}
19. Bxe4 {[%clk 0:58:05]}  dxe4 {[%clk 0:19:07]} 20. Qh6 {[%clk 0:57:34]}  Be8 {[%clk 0:05:58]} 21. Rc1 {[%clk 0:52:18]}  Rc8 {[%clk 0:05:10]}
22. Rfc2 {[%clk 0:52:27]}  Rd8 {[%clk 0:01:30]} 23. h4 {[%clk 0:37:47]}  Bf7 {[%clk 0:01:38]} 24. h5 {[%clk 0:37:19]}  Rd7 {[%clk 0:01:09]}
25. hxg6 {[%clk 0:31:23]}  Bxg6 {[%clk 0:01:17]} 26. Nxd7 {[%clk 0:29:09]}  Qxd7 {[%clk 0:01:46]} 27. Na2 {[%clk 0:28:34]}  fxg4 {[%clk 0:01:39]}
28. Rc7 {[%clk 0:28:59]}  Qd8 {[%clk 0:00:57]} 29. R1c5 {[%clk 0:23:55]}  Rf5 {[%clk 0:01:07]} 30. Qh4 {[%clk 0:22:21]}  Rxc5 {[%clk 0:01:19]}
31. Rxc5 {[%clk 0:22:47]}  Qd7 {[%clk 0:01:03]} 32. Qf6 {[%clk 0:22:42]}  Nd5 {[%clk 0:00:47]} 33. Qe5 {[%clk 0:23:03]}  Bf7 {[%clk 0:00:49]}
34. Nc3 {[%clk 0:22:47]}  Qd8 {[%clk 0:00:41]} 35. Nxd5 {[%clk 0:22:18]}  exd5 {[%clk 0:01:07]} 36. Rc7 {[%clk 0:22:14]}  a5 {[%clk 0:00:39]}
37. Rb7 {[%clk 0:22:32]} 1-0